[Event "Live Chess"]
[Site "Chess.com"]
[Date "2023.05.21"]
[Round "-"]
[White "Jeffaroow"]
[Black "YichenLFC"]
[Result "1-0"]
[WhiteElo "518"]
[BlackElo "583"]
[TimeControl "300"]
[EndTime "0:22:41 PDT"]
[Termination "Jeffaroow won - game abandoned"]

1. e4 {[%clk 0:04:49.5]} 1... e5 {[%clk 0:04:57.4]} 2. Nf3 {[%clk 0:04:48.4]}
2... Nc6 {[%clk 0:04:54.2]} 3. d4 {[%clk 0:04:47]} 3... exd4 {[%clk 0:04:48.4]}
4. Nxd4 {[%clk 0:04:45.6]} 4... Nxd4 {[%clk 0:04:46.1]} 5. Qxd4 {[%clk 0:04:44]}
5... Nf6 {[%clk 0:04:41.9]} 6. e5 {[%clk 0:04:42.5]} 6... c5 {[%clk 0:04:31.7]}
7. Qf4 {[%clk 0:04:34.2]} 7... Nd5 {[%clk 0:04:24.1]} 8. Qe4 {[%clk 0:04:25.9]}
8... Ne7 {[%clk 0:04:13.9]} 9. Nc3 {[%clk 0:04:21.4]} 9... d6 {[%clk 0:04:09.7]}
10. exd6 {[%clk 0:04:18.4]} 10... Qxd6 {[%clk 0:04:05.3]} 11. Bf4 {[%clk
0:04:13]} 1-0

[Event "Live Chess"]
[Site "Chess.com"]
[Date "2023.05.21"]
[Round "-"]
[White "chessleanstrategist"]
[Black "AlanPaling"]
[Result "0-1"]
[WhiteElo "407"]
[BlackElo "1368"]
[TimeControl "300"]
[EndTime "0:23:11 PDT"]
[Termination "AlanPaling won by resignation"]

1. c4 {[%clk 0:04:58.2]} 1... c5 {[%clk 0:04:58.3]} 2. Nf3 {[%clk 0:04:54.3]}
2... Nc6 {[%clk 0:04:57.4]} 3. g3 {[%clk 0:04:52.1]} 3... e5 {[%clk 0:04:56.4]}
4. d3 {[%clk 0:04:43.6]} 4... g6 {[%clk 0:04:53.3]} 5. Bg2 {[%clk 0:04:41.7]}
5... Bg7 {[%clk 0:04:52.2]} 6. Nc3 {[%clk 0:04:37]} 6... Nge7 {[%clk 0:04:51.1]}
7. e4 {[%clk 0:04:28.7]} 7... O-O {[%clk 0:04:48.3]} 8. O-O {[%clk 0:04:27.3]}
8... d6 {[%clk 0:04:37.3]} 9. a3 {[%clk 0:04:22.2]} 9... f5 {[%clk 0:04:33]} 10.
Nd2 {[%clk 0:04:08.6]} 10... f4 {[%clk 0:04:28.9]} 11. gxf4 {[%clk 0:04:02.6]}
11... Rxf4 {[%clk 0:04:25.8]} 12. Nf3 {[%clk 0:03:53.1]} 12... Rf7 {[%clk
0:04:19.3]} 13. Ng5 {[%clk 0:03:46.6]} 13... Rf8 {[%clk 0:04:15.7]} 14. Ne6
{[%clk 0:03:44.7]} 14... Bxe6 {[%clk 0:04:13.6]} 15. Nd5 {[%clk 0:03:41.6]}
15... Bxd5 {[%clk 0:04:09.6]} 16. exd5 {[%clk 0:03:40]} 16... Nd4 {[%clk
0:04:08.3]} 17. Be3 {[%clk 0:03:35.1]} 17... Qb6 {[%clk 0:04:04.4]} 18. Rb1
{[%clk 0:03:28.8]} 18... Qb3 {[%clk 0:03:59.7]} 19. Qxb3 {[%clk 0:03:24.6]}
19... Nxb3 {[%clk 0:03:58.2]} 20. f4 {[%clk 0:03:02.7]} 20... Nf5 {[%clk
0:03:53.7]} 21. fxe5 {[%clk 0:02:48.1]} 21... Nxe3 {[%clk 0:03:47.6]} 22. Rxf8+
{[%clk 0:02:42.4]} 22... Rxf8 {[%clk 0:03:46]} 23. exd6 {[%clk 0:02:33.6]} 23...
Nxg2 {[%clk 0:03:44.2]} 24. Kxg2 {[%clk 0:02:31.8]} 24... Rd8 {[%clk 0:03:42.6]}
25. Re1 {[%clk 0:02:24.7]} 25... Rxd6 {[%clk 0:03:39]} 26. Kf3 {[%clk
0:02:10.2]} 26... b5 {[%clk 0:03:32]} 27. cxb5 {[%clk 0:02:08.3]} 27... Rxd5
{[%clk 0:03:29.1]} 28. Ke4 {[%clk 0:01:58.1]} 28... Rd7 {[%clk 0:03:26]} 29. Kf3
{[%clk 0:01:25.6]} 29... Bxb2 {[%clk 0:03:18.9]} 30. Re8+ {[%clk 0:01:18.3]}
30... Kf7 {[%clk 0:03:16.7]} 31. Rh8 {[%clk 0:01:08.4]} 31... Kg7 {[%clk
0:03:14.7]} 32. Re8 {[%clk 0:00:59.3]} 32... Nd4+ {[%clk 0:03:12.4]} 33. Kg4
{[%clk 0:00:50.4]} 33... Nxb5 {[%clk 0:03:10.1]} 34. Re2 {[%clk 0:00:38.8]}
34... Bxa3 {[%clk 0:03:07.9]} 0-1

[Event "Live Chess"]
[Site "Chess.com"]
[Date "2023.05.21"]
[Round "-"]
[White "martynstanley"]
[Black "mattihelenius2"]
[Result "1-0"]
[WhiteElo "987"]
[BlackElo "488"]
[TimeControl "300"]
[EndTime "0:23:12 PDT"]
[Termination "martynstanley won by checkmate"]

1. d4 {[%clk 0:04:58]} 1... e5 {[%clk 0:04:59.9]} 2. dxe5 {[%clk 0:04:56.4]}
2... Qe7 {[%clk 0:04:56.2]} 3. f4 {[%clk 0:04:55.6]} 3... Nc6 {[%clk 0:04:54]}
4. e3 {[%clk 0:04:54.7]} 4... f6 {[%clk 0:04:52.3]} 5. Nf3 {[%clk 0:04:52.5]}
5... fxe5 {[%clk 0:04:50.7]} 6. Nxe5 {[%clk 0:04:51.6]} 6... Nxe5 {[%clk
0:04:49.4]} 7. fxe5 {[%clk 0:04:50.3]} 7... Qxe5 {[%clk 0:04:48.7]} 8. Bd3
{[%clk 0:04:46.4]} 8... Nf6 {[%clk 0:04:46.9]} 9. O-O {[%clk 0:04:45.6]} 9...
Bc5 {[%clk 0:04:41]} 10. Qf3 {[%clk 0:04:43.6]} 10... Bxe3+ {[%clk 0:04:37.1]}
11. Bxe3 {[%clk 0:04:42.1]} 11... d6 {[%clk 0:04:29.7]} 12. c3 {[%clk
0:04:40.8]} 12... Bg4 {[%clk 0:04:28.1]} 13. Qf2 {[%clk 0:04:39.1]} 13... Ne4
{[%clk 0:04:21.1]} 14. Qf7+ {[%clk 0:04:35]} 14... Kd8 {[%clk 0:04:17.8]} 15.
Bd4 {[%clk 0:04:28.2]} 15... Qa5 {[%clk 0:03:30.6]} 16. Bxe4 {[%clk 0:04:21.7]}
16... Bd7 {[%clk 0:03:20.2]} 17. Qxg7 {[%clk 0:04:19.9]} 17... Bf5 {[%clk
0:02:56.7]} 18. Bxf5 {[%clk 0:04:14.7]} 18... Re8 {[%clk 0:02:52]} 19. Bf6+
{[%clk 0:04:07.2]} 19... Re7 {[%clk 0:02:48.3]} 20. Qxe7# {[%clk 0:04:06.1]} 1-0

[Event "Live Chess"]
[Site "Chess.com"]
[Date "2023.05.21"]
[Round "-"]
[White "raminguy"]
[Black "AttackingSnowLeopard"]
[Result "0-1"]
[WhiteElo "1935"]
[BlackElo "2196"]
[TimeControl "300"]
[EndTime "0:23:21 PDT"]
[Termination "AttackingSnowLeopard won by resignation"]

1. d4 {[%clk 0:04:59.2]} 1... d5 {[%clk 0:04:53.6]} 2. Nc3 {[%clk 0:04:58.7]}
2... Nf6 {[%clk 0:04:51.1]} 3. Bf4 {[%clk 0:04:58.6]} 3... c6 {[%clk 0:04:48.7]}
4. e3 {[%clk 0:04:57.6]} 4... Bf5 {[%clk 0:04:47.2]} 5. Nf3 {[%clk 0:04:54.8]}
5... e6 {[%clk 0:04:46.2]} 6. Ne5 {[%clk 0:04:54]} 6... Nbd7 {[%clk 0:04:44.8]}
7. g4 {[%clk 0:04:53.5]} 7... Nxe5 {[%clk 0:04:35.8]} 8. gxf5 {[%clk 0:04:52.4]}
8... Ned7 {[%clk 0:04:34.1]} 9. fxe6 {[%clk 0:04:51.4]} 9... fxe6 {[%clk
0:04:34]} 10. Bh3 {[%clk 0:04:48.6]} 10... Qe7 {[%clk 0:04:32.3]} 11. Qf3 {[%clk
0:04:47]} 11... O-O-O {[%clk 0:04:30.1]} 12. O-O-O {[%clk 0:04:45.4]} 12... h6
{[%clk 0:04:23.3]} 13. Rhe1 {[%clk 0:04:37.5]} 13... g5 {[%clk 0:04:21.9]} 14.
Be5 {[%clk 0:04:32.5]} 14... Nxe5 {[%clk 0:04:19.6]} 15. dxe5 {[%clk 0:04:31.1]}
15... Nd7 {[%clk 0:04:19.2]} 16. e4 {[%clk 0:04:18.4]} 16... Nxe5 {[%clk
0:04:17.2]} 17. Qg3 {[%clk 0:04:16.7]} 17... Bg7 {[%clk 0:04:13.3]} 18. exd5
{[%clk 0:04:14.7]} 18... cxd5 {[%clk 0:04:11.7]} 19. Nxd5 {[%clk 0:04:10.5]}
19... Qd6 {[%clk 0:03:59.9]} 20. Qc3+ {[%clk 0:03:30.6]} 20... Kb8 {[%clk
0:03:54.8]} 21. Ne3 {[%clk 0:03:15.6]} 21... Qb6 {[%clk 0:03:42.2]} 22. Qb3
{[%clk 0:03:04.6]} 22... Qc6 {[%clk 0:03:35]} 23. Kb1 {[%clk 0:02:42.5]} 23...
Nf3 {[%clk 0:03:31.6]} 24. Bg2 {[%clk 0:02:04.5]} 24... Rhf8 {[%clk 0:02:50.3]}
25. Rxd8+ {[%clk 0:01:35.7]} 25... Rxd8 {[%clk 0:02:47.6]} 26. Bxf3 {[%clk
0:00:45.8]} 26... Qxf3 {[%clk 0:02:44.6]} 27. Nc4 {[%clk 0:00:23.9]} 27... Qd1+
{[%clk 0:02:40.8]} 0-1

[Event "Live Chess"]
[Site "Chess.com"]
[Date "2023.05.21"]
[Round "-"]
[White "EdenHazard8"]
[Black "CroasArRheun"]
[Result "1/2-1/2"]
[WhiteElo "1958"]
[BlackElo "1812"]
[TimeControl "300"]
[EndTime "0:23:31 PDT"]
[Termination "Game drawn by repetition"]

1. e4 {[%clk 0:04:58.1]} 1... e5 {[%clk 0:04:58.7]} 2. Nf3 {[%clk 0:04:54.8]}
2... Nc6 {[%clk 0:04:57.8]} 3. Bb5 {[%clk 0:04:54.3]} 3... a6 {[%clk 0:04:56.7]}
4. Ba4 {[%clk 0:04:51.2]} 4... Nf6 {[%clk 0:04:55.8]} 5. O-O {[%clk 0:04:50.7]}
5... Be7 {[%clk 0:04:54.8]} 6. Re1 {[%clk 0:04:48.6]} 6... b5 {[%clk 0:04:52.6]}
7. Bb3 {[%clk 0:04:47]} 7... d6 {[%clk 0:04:52.3]} 8. c3 {[%clk 0:04:44]} 8...
Na5 {[%clk 0:04:50.2]} 9. Bc2 {[%clk 0:04:40.1]} 9... c5 {[%clk 0:04:48.4]} 10.
d4 {[%clk 0:04:38.6]} 10... cxd4 {[%clk 0:04:46.4]} 11. cxd4 {[%clk 0:04:38.5]}
11... exd4 {[%clk 0:04:44.2]} 12. Qxd4 {[%clk 0:04:36.1]} 12... Bg4 {[%clk
0:04:37.1]} 13. e5 {[%clk 0:04:32.7]} 13... dxe5 {[%clk 0:04:32.4]} 14. Qxd8+
{[%clk 0:04:24]} 14... Rxd8 {[%clk 0:04:32.3]} 15. Nxe5 {[%clk 0:04:23.2]} 15...
Be6 {[%clk 0:04:25.1]} 16. Be3 {[%clk 0:04:21]} 16... Rb8 {[%clk 0:04:15]} 17.
Nc3 {[%clk 0:04:16.4]} 17... Bd6 {[%clk 0:04:11.4]} 18. Bg5 {[%clk 0:04:10.5]}
18... Bxe5 {[%clk 0:03:55.8]} 19. Rxe5 {[%clk 0:04:08.2]} 19... Nc4 {[%clk
0:03:55.2]} 20. Re2 {[%clk 0:04:01]} 20... Nxb2 {[%clk 0:03:49.3]} 21. Bf5
{[%clk 0:03:52.1]} 21... Nc4 {[%clk 0:03:30.4]} 22. Bxe6 {[%clk 0:03:46.3]}
22... fxe6 {[%clk 0:03:29.7]} 23. Rxe6+ {[%clk 0:03:46.2]} 23... Kf7 {[%clk
0:03:28.9]} 24. Rxa6 {[%clk 0:03:45.4]} 24... Rhe8 {[%clk 0:03:11.7]} 25. h4
{[%clk 0:03:31.9]} 25... Ne4 {[%clk 0:03:06.4]} 26. Nxe4 {[%clk 0:03:27.5]}
26... Rxe4 {[%clk 0:03:06.3]} 27. Ra7+ {[%clk 0:03:24.5]} 27... Kg6 {[%clk
0:03:04.1]} 28. Rd1 {[%clk 0:03:21.6]} 28... Rbe8 {[%clk 0:02:57.1]} 29. Rdd7
{[%clk 0:03:13.7]} 29... Rg8 {[%clk 0:02:46.1]} 30. Rab7 {[%clk 0:03:08.8]}
30... Re5 {[%clk 0:02:34.8]} 31. Rdc7 {[%clk 0:03:01.8]} 31... h6 {[%clk
0:02:26.3]} 32. Bf4 {[%clk 0:02:53.2]} 32... Rf5 {[%clk 0:02:18.1]} 33. g3
{[%clk 0:02:43.4]} 33... Kh5 {[%clk 0:02:10.5]} 34. a4 {[%clk 0:02:38.5]} 34...
g5 {[%clk 0:02:05.7]} 35. hxg5 {[%clk 0:02:27.8]} 35... hxg5 {[%clk 0:02:03.8]}
36. Bc1 {[%clk 0:02:13.3]} 36... Re8 {[%clk 0:01:47.1]} 37. Kf1 {[%clk
0:01:46.9]} 37... Rfe5 {[%clk 0:01:33]} 38. Rxb5 {[%clk 0:01:18.4]} 38... Re1+
{[%clk 0:01:25.6]} 39. Kg2 {[%clk 0:01:16.6]} 39... Rxc1 {[%clk 0:01:24.5]} 40.
Rbc5 {[%clk 0:01:16.1]} 40... Re4 {[%clk 0:00:56.1]} 41. a5 {[%clk 0:01:08.9]}
41... Rc3 {[%clk 0:00:32.6]} 42. a6 {[%clk 0:01:01.2]} 42... Kg4 {[%clk
0:00:30.3]} 43. f3+ {[%clk 0:00:53.8]} 43... Rxf3 {[%clk 0:00:28.4]} 44. Rxc4
{[%clk 0:00:49.7]} 44... Rxg3+ {[%clk 0:00:26.2]} 45. Kf2 {[%clk 0:00:46.8]}
45... Rf3+ {[%clk 0:00:25.2]} 46. Kg2 {[%clk 0:00:44]} 46... Rg3+ {[%clk
0:00:24.3]} 47. Kf2 {[%clk 0:00:41]} 47... Rf3+ {[%clk 0:00:23.7]} 48. Kg2
{[%clk 0:00:40.9]} 48... Rg3+ {[%clk 0:00:23.1]} 1/2-1/2

[Event "Live Chess"]
[Site "Chess.com"]
[Date "2023.05.21"]
[Round "-"]
[White "Singapourfeuj"]
[Black "Ferrarifan27"]
[Result "1/2-1/2"]
[WhiteElo "2225"]
[BlackElo "2074"]
[TimeControl "300"]
[EndTime "0:23:32 PDT"]
[Termination "Game drawn by repetition"]

1. d4 {[%clk 0:04:59.6]} 1... Nf6 {[%clk 0:04:58.1]} 2. Nf3 {[%clk 0:04:58.8]}
2... e6 {[%clk 0:04:54.7]} 3. g3 {[%clk 0:04:57.8]} 3... d5 {[%clk 0:04:53.3]}
4. Bg2 {[%clk 0:04:57.2]} 4... Be7 {[%clk 0:04:52.3]} 5. O-O {[%clk 0:04:56.5]}
5... O-O {[%clk 0:04:51.6]} 6. c4 {[%clk 0:04:55.8]} 6... c6 {[%clk 0:04:50.8]}
7. Nbd2 {[%clk 0:04:54.4]} 7... b6 {[%clk 0:04:49]} 8. Ne5 {[%clk 0:04:51.2]}
8... Nfd7 {[%clk 0:04:46.8]} 9. cxd5 {[%clk 0:04:49]} 9... cxd5 {[%clk
0:04:44.5]} 10. Ndc4 {[%clk 0:04:44.8]} 10... Nxe5 {[%clk 0:04:39.5]} 11. Nxe5
{[%clk 0:04:43.5]} 11... Bb7 {[%clk 0:04:35.5]} 12. Bf4 {[%clk 0:04:41.7]} 12...
Nd7 {[%clk 0:04:33.7]} 13. Rc1 {[%clk 0:04:39.5]} 13... Nxe5 {[%clk 0:04:32.3]}
14. Bxe5 {[%clk 0:04:38.7]} 14... Rc8 {[%clk 0:04:31]} 15. Qa4 {[%clk
0:04:36.3]} 15... a6 {[%clk 0:04:22.3]} 16. Bf4 {[%clk 0:04:33.4]} 16... Qe8
{[%clk 0:04:14.2]} 17. Qb3 {[%clk 0:04:26.8]} 17... Qb5 {[%clk 0:04:06]} 18.
Qxb5 {[%clk 0:04:22.5]} 18... axb5 {[%clk 0:04:05.9]} 19. Rxc8 {[%clk
0:04:16.7]} 19... Rxc8 {[%clk 0:04:02.7]} 20. Rc1 {[%clk 0:04:15.8]} 20... Rxc1+
{[%clk 0:03:59.4]} 21. Bxc1 {[%clk 0:04:14.4]} 21... b4 {[%clk 0:03:57.8]} 22.
b3 {[%clk 0:04:13]} 22... Ba6 {[%clk 0:03:55.8]} 23. Bf1 {[%clk 0:04:11.6]}
23... Kf8 {[%clk 0:03:51.4]} 24. f3 {[%clk 0:04:10.6]} 24... Ke8 {[%clk
0:03:48.4]} 25. e4 {[%clk 0:04:07.5]} 25... Bxf1 {[%clk 0:03:47]} 26. Kxf1
{[%clk 0:04:06.8]} 26... Bf6 {[%clk 0:03:40.6]} 27. Be3 {[%clk 0:04:04.4]} 27...
Kd7 {[%clk 0:03:36.5]} 28. Ke2 {[%clk 0:04:03.6]} 28... Kc6 {[%clk 0:03:35.2]}
29. Kd3 {[%clk 0:04:02.7]} 29... Kb5 {[%clk 0:03:32.7]} 30. g4 {[%clk 0:04:00]}
30... h6 {[%clk 0:03:30]} 31. Bf2 {[%clk 0:03:58.3]} 31... Bg5 {[%clk
0:03:19.9]} 32. h4 {[%clk 0:03:56.8]} 32... Bf4 {[%clk 0:03:17.9]} 33. h5 {[%clk
0:03:55.2]} 33... Kc6 {[%clk 0:03:10.6]} 34. Be1 {[%clk 0:03:50.5]} 34... Kb5
{[%clk 0:03:09.1]} 35. Bd2 {[%clk 0:03:48.4]} 35... Bxd2 {[%clk 0:03:03.8]} 36.
Kxd2 {[%clk 0:03:47.4]} 36... Kc6 {[%clk 0:03:02]} 37. Ke3 {[%clk 0:03:43.6]}
37... Kd6 {[%clk 0:03:00.8]} 38. Kf4 {[%clk 0:03:42.4]} 38... f6 {[%clk
0:02:54.4]} 39. Ke3 {[%clk 0:03:38.7]} 39... Kc6 {[%clk 0:02:50.8]} 40. f4
{[%clk 0:03:34.9]} 40... dxe4 {[%clk 0:02:45.3]} 41. Kxe4 {[%clk 0:03:33.9]}
41... Kd6 {[%clk 0:02:44.4]} 42. f5 {[%clk 0:03:29.9]} 42... e5 {[%clk
0:02:36.6]} 43. dxe5+ {[%clk 0:03:25.7]} 43... fxe5 {[%clk 0:02:35.7]} 44. g5
{[%clk 0:03:20]} 44... hxg5 {[%clk 0:02:23.5]} 45. f6 {[%clk 0:03:18.9]} 45...
Ke6 {[%clk 0:02:13.7]} 46. fxg7 {[%clk 0:03:17.6]} 46... Kf7 {[%clk 0:02:13]}
47. h6 {[%clk 0:03:03.3]} 47... g4 {[%clk 0:02:12]} 48. Ke3 {[%clk 0:02:59.9]}
48... Kg8 {[%clk 0:02:02.8]} 49. Ke4 {[%clk 0:02:58.1]} 49... Kf7 {[%clk
0:01:53.6]} 50. Ke3 {[%clk 0:02:55.4]} 50... Kg8 {[%clk 0:01:51.9]} 51. Ke4
{[%clk 0:02:53.6]} 51... Kf7 {[%clk 0:01:51]} 1/2-1/2

[Event "Live Chess"]
[Site "Chess.com"]
[Date "2023.05.21"]
[Round "-"]
[White "Biranidun"]
[Black "Bob2pen"]
[Result "1-0"]
[WhiteElo "2536"]
[BlackElo "1814"]
[TimeControl "300"]
[EndTime "0:23:50 PDT"]
[Termination "Biranidun won by resignation"]

1. e4 {[%clk 0:04:58.3]} 1... e6 {[%clk 0:04:57.4]} 2. d4 {[%clk 0:04:57.5]}
2... d5 {[%clk 0:04:56.8]} 3. e5 {[%clk 0:04:57.1]} 3... c5 {[%clk 0:04:55.7]}
4. c3 {[%clk 0:04:55.9]} 4... Nc6 {[%clk 0:04:54.8]} 5. Nf3 {[%clk 0:04:55.2]}
5... Qb6 {[%clk 0:04:53.5]} 6. Bd3 {[%clk 0:04:54.4]} 6... Bd7 {[%clk
0:04:52.6]} 7. dxc5 {[%clk 0:04:53]} 7... Bxc5 {[%clk 0:04:51]} 8. O-O {[%clk
0:04:52.9]} 8... a5 {[%clk 0:04:50]} 9. Nbd2 {[%clk 0:04:49.8]} 9... Nge7 {[%clk
0:04:48.1]} 10. Nb3 {[%clk 0:04:49.2]} 10... Ng6 {[%clk 0:04:44.6]} 11. Nxc5
{[%clk 0:04:45.6]} 11... Qxc5 {[%clk 0:04:42.7]} 12. Qe2 {[%clk 0:04:43.8]}
12... O-O {[%clk 0:04:33.8]} 13. h4 {[%clk 0:04:42.8]} 13... f5 {[%clk
0:04:25.9]} 14. exf6 {[%clk 0:04:37.2]} 14... Rxf6 {[%clk 0:04:23]} 15. Bg5
{[%clk 0:04:33.8]} 15... Rf7 {[%clk 0:04:02.7]} 16. Bxg6 {[%clk 0:04:28.2]}
16... hxg6 {[%clk 0:03:53.6]} 17. Qd3 {[%clk 0:04:26.5]} 17... Rf5 {[%clk
0:03:48.8]} 18. g4 {[%clk 0:04:21.9]} 18... Ne5 {[%clk 0:03:44.3]} 19. Nxe5
{[%clk 0:04:19.9]} 19... Rxe5 {[%clk 0:03:43]} 20. Qxg6 {[%clk 0:04:17.4]} 20...
Rf8 {[%clk 0:03:35.9]} 21. Qd3 {[%clk 0:03:36.5]} 21... Bb5 {[%clk 0:03:28.8]}
22. Qd4 {[%clk 0:03:33.9]} 22... Qxd4 {[%clk 0:03:21.6]} 23. cxd4 {[%clk
0:03:33.8]} 23... Re2 {[%clk 0:03:20.6]} 24. Be3 {[%clk 0:03:25.3]} 24... Rxb2
{[%clk 0:03:17.9]} 25. Rfb1 {[%clk 0:03:24.2]} 25... Rxb1+ {[%clk 0:03:14.2]}
26. Rxb1 {[%clk 0:03:24.1]} 26... Bc6 {[%clk 0:03:11.1]} 27. Kg2 {[%clk
0:03:22.9]} 27... a4 {[%clk 0:03:08.7]} 28. Kg3 {[%clk 0:03:21.7]} 28... Kf7
{[%clk 0:03:07.5]} 29. Bf4 {[%clk 0:03:18.3]} 29... Ke7 {[%clk 0:02:59.4]} 30.
h5 {[%clk 0:03:16.9]} 30... Kd7 {[%clk 0:02:55.2]} 31. Be5 {[%clk 0:03:15.7]}
31... Rf7 {[%clk 0:02:53.2]} 32. Rc1 {[%clk 0:03:11.9]} 32... Ke8 {[%clk
0:02:41.9]} 33. f4 {[%clk 0:03:09.7]} 33... Kf8 {[%clk 0:02:40.7]} 34. g5 {[%clk
0:03:07.9]} 34... Kg8 {[%clk 0:02:39.3]} 35. Kg4 {[%clk 0:02:55.8]} 35... Rf8
{[%clk 0:02:37.7]} 36. g6 {[%clk 0:02:50.9]} 36... Rf5 {[%clk 0:02:35.1]} 37.
Rh1 {[%clk 0:02:48.4]} 37... Bb5 {[%clk 0:02:26.1]} 38. Rh2 {[%clk 0:02:43]}
38... Kf8 {[%clk 0:02:19.5]} 39. Kg3 {[%clk 0:02:34.4]} 39... Bc4 {[%clk
0:02:13.8]} 40. a3 {[%clk 0:02:31.5]} 40... b5 {[%clk 0:02:12.5]} 41. h6 {[%clk
0:02:30.8]} 41... gxh6 {[%clk 0:02:11.2]} 42. Rxh6 {[%clk 0:02:30.7]} 42... Be2
{[%clk 0:02:04.9]} 43. Rh8+ {[%clk 0:02:29.4]} 43... Ke7 {[%clk 0:02:02.9]} 44.
g7 {[%clk 0:02:29.3]} 1-0

[Event "Live Chess"]
[Site "Chess.com"]
[Date "2023.05.21"]
[Round "-"]
[White "MarkLim1"]
[Black "HoarseyHorsey"]
[Result "1-0"]
[WhiteElo "1683"]
[BlackElo "1444"]
[TimeControl "300"]
[EndTime "0:24:01 PDT"]
[Termination "MarkLim1 won by resignation"]

1. d4 {[%clk 0:04:58.1]} 1... Nf6 {[%clk 0:04:57.9]} 2. Nf3 {[%clk 0:04:57.5]}
2... d5 {[%clk 0:04:57.4]} 3. c4 {[%clk 0:04:56.5]} 3... Bg4 {[%clk 0:04:54.7]}
4. Ne5 {[%clk 0:04:54.7]} 4... Bh5 {[%clk 0:04:52.2]} 5. Qb3 {[%clk 0:04:51.8]}
5... Qc8 {[%clk 0:04:46.8]} 6. Nc3 {[%clk 0:04:47.3]} 6... c6 {[%clk 0:04:39.9]}
7. cxd5 {[%clk 0:04:45]} 7... cxd5 {[%clk 0:04:38.4]} 8. Nxd5 {[%clk 0:04:43.6]}
8... Nxd5 {[%clk 0:04:37.3]} 9. Qxd5 {[%clk 0:04:42.4]} 9... e6 {[%clk
0:04:35.5]} 10. Qb5+ {[%clk 0:04:40.6]} 10... Nc6 {[%clk 0:04:32.8]} 11. e3
{[%clk 0:04:35.3]} 11... Bg6 {[%clk 0:04:26]} 12. Nxg6 {[%clk 0:04:31.6]} 12...
hxg6 {[%clk 0:04:25.9]} 13. Be2 {[%clk 0:04:26.7]} 13... Bd6 {[%clk 0:04:23.9]}
14. h3 {[%clk 0:04:24.6]} 14... Qc7 {[%clk 0:04:20.4]} 15. Bf3 {[%clk
0:04:23.3]} 15... Rc8 {[%clk 0:04:16.8]} 16. Bd2 {[%clk 0:04:21]} 16... O-O
{[%clk 0:04:15.8]} 17. O-O {[%clk 0:04:19.7]} 17... e5 {[%clk 0:03:54.2]} 18.
dxe5 {[%clk 0:04:15.7]} 18... Bxe5 {[%clk 0:03:48.8]} 19. Rac1 {[%clk
0:04:11.9]} 19... Qb6 {[%clk 0:03:41.5]} 20. Qxb6 {[%clk 0:04:09.4]} 20... axb6
{[%clk 0:03:38.5]} 21. Bc3 {[%clk 0:04:00.1]} 21... Bd6 {[%clk 0:03:29]} 22.
Rfd1 {[%clk 0:03:58.4]} 22... Rfd8 {[%clk 0:03:26.8]} 23. Kf1 {[%clk 0:03:49.1]}
23... Ne5 {[%clk 0:03:20.4]} 24. Bxb7 {[%clk 0:03:36.1]} 24... Rc5 {[%clk
0:03:13.1]} 25. a3 {[%clk 0:03:16]} 25... Nc4 {[%clk 0:03:03.2]} 26. Bd4 {[%clk
0:03:04.9]} 26... Rc7 {[%clk 0:02:59.3]} 27. Bf3 {[%clk 0:03:02.5]} 27... b5
{[%clk 0:02:43.6]} 28. Be2 {[%clk 0:02:57.8]} 28... Ne5 {[%clk 0:02:34.1]} 29.
Bb6 {[%clk 0:02:53.5]} 29... Rxc1 {[%clk 0:02:31.7]} 30. Rxc1 {[%clk 0:02:51.5]}
30... Rb8 {[%clk 0:02:29]} 31. Bd4 {[%clk 0:02:47.7]} 31... Nd7 {[%clk
0:02:14.1]} 32. Ke1 {[%clk 0:02:39.5]} 32... b4 {[%clk 0:02:10.1]} 33. a4 {[%clk
0:02:38]} 33... Kf8 {[%clk 0:02:01.4]} 34. b3 {[%clk 0:02:36.2]} 34... Be5
{[%clk 0:01:56.7]} 35. Bb5 {[%clk 0:02:14.3]} 35... Bxd4 {[%clk 0:01:49.7]} 36.
exd4 {[%clk 0:02:13.4]} 36... Nb6 {[%clk 0:01:43.5]} 37. Kd2 {[%clk 0:02:10.4]}
37... Nd5 {[%clk 0:01:41.2]} 38. g3 {[%clk 0:02:01.2]} 38... Ke7 {[%clk
0:01:32.3]} 39. Rc5 {[%clk 0:01:50.2]} 39... Ke6 {[%clk 0:01:25.3]} 40. Bc4
{[%clk 0:01:48.2]} 40... Rd8 {[%clk 0:01:22.7]} 41. Rxd5 {[%clk 0:01:41.5]}
41... Rxd5 {[%clk 0:01:21.5]} 42. Bxd5+ {[%clk 0:01:40.7]} 42... Kxd5 {[%clk
0:01:21.4]} 43. Kd3 {[%clk 0:01:40]} 43... f5 {[%clk 0:01:20.1]} 44. f4 {[%clk
0:01:37.5]} 1-0